fUSD/lending_fUSD_20260525
["ID","MTS","AMOUNT","RATE_DAILY","PERIOD"]
[422924297,1779638585000,152.0,8.267e-05,7]
[422924300,1779638807000,164.85,6.323e-05,2]
[422924301,1779638808000,164.85,7.587e-05,2]
[422924306,1779638957000,-164.85,8.852e-05,2]
[422924305,1779638957000,-150.0,8.723e-05,2]
[422924317,1779639032000,-46.17890492,9.596e-05,2]
[422924318,1779639032000,-539.95715104,9.596e-05,2]
[422924320,1779639032000,-164.85,0.00011381,2]
[422924321,1779639032000,-606.221646,0.00012479,2]
[422924316,1779639032000,-500.0,8.893e-05,2]
[422924319,1779639032000,-164.85,0.00010117,2]
[422924326,1779639032000,-1105.98436216,0.00012542,2]
[422924323,1779639032000,-300.0,0.00012542,2]
[422924329,1779639032000,-483.1412435,0.00012542,2]
[422924328,1779639032000,-94.01563784,0.00012542,2]
[422924325,1779639032000,-150.0,0.00012542,2]
[422924345,1779639033000,-158.07,0.00013223,2]
[422924346,1779639033000,-1437.43,0.00013258,2]
[422924349,1779639033000,-166.66,0.00013308,2]
[422924350,1779639033000,-150.0,0.00013488,2]
[422924347,1779639033000,-165.7,0.00013266,2]
[422924352,1779639033000,-150.0,0.00013488,2]
[422924351,1779639033000,-150.0,0.00013488,2]
[422924354,1779639033000,-150.00000001,0.00013488,2]
[422924353,1779639033000,-150.0,0.00013488,2]
[422924344,1779639033000,-219.03,0.00013126,2]
[422924348,1779639033000,-1003.1640441,0.00013272,2]
[422924342,1779639033000,-367.0,0.00012986,2]
[422924335,1779639033000,-164.85,0.00012646,2]
[422924340,1779639033000,-1136.59,0.00012902,2]
[422924343,1779639033000,-2404.22,0.00013037,2]
[422924338,1779639033000,-2451.37,0.00012863,2]
[422924339,1779639033000,-166.66,0.00012883,2]
[422924336,1779639033000,-200.0,0.00012751,2]
[422924356,1779639033000,-150.0,0.00013618,2]
[422924334,1779639033000,-500.0,0.00012548,2]
[422924333,1779639033000,-105805.8580052,0.00012543,2]
[422924332,1779639033000,-240.8319948,0.00012543,2]
[422924331,1779639033000,-316.8587565,0.00012542,2]
[422924330,1779639033000,-400.0,0.00012542,2]
[422924341,1779639033000,-197.4,0.00012963,2]
[422924355,1779639033000,-150.0,0.00013553,2]
[422924337,1779639033000,-1218.64,0.00012859,2]
[422924358,1779639033000,-150.0,0.00013683,2]
[422924357,1779639033000,-255.0,0.00013633,2]
[422924383,1779639033000,-856.08682692,0.00014097,2]
[422924382,1779639033000,-717.79063966,0.00014097,2]
[422924380,1779639033000,-763.46188565,0.00014097,2]
[422924381,1779639033000,-487.38503545,0.00014097,2]
[422924379,1779639033000,-591.86802884,0.00014097,2]
[422924378,1779639033000,-3451.85514798,0.00014097,2]
[422924384,1779639033000,-636.65095903,0.00014097,2]
[422924376,1779639033000,-150.0,0.00014074,2]
[422924374,1779639033000,-150.0,0.00014009,2]
[422924375,1779639033000,-500.0,0.00014009,2]
[422924373,1779639033000,-250.0,0.00014,2]
[422924372,1779639033000,-5615.67577131,0.00013997,2]
[422924377,1779639033000,-2353.84921766,0.00014097,2]
[422924369,1779639033000,-150.0,0.00013813,2]
[422924360,1779639033000,-200.0,0.00013699,2]
[422924362,1779639033000,-6224.82,0.00013699,2]
[422924371,1779639033000,-150.0,0.00013944,2]
[422924363,1779639033000,-10875.38725852,0.00013699,2]
[422924361,1779639033000,-167.23,0.00013699,2]
[422924364,1779639033000,-6493.46274148,0.00013699,2]
[422924359,1779639033000,-9999.99,0.00013699,2]
[422924367,1779639033000,-1063.0,0.0001376,2]
[422924368,1779639033000,-1680.0,0.00013796,2]
[422924366,1779639033000,-150.0,0.00013748,2]
[422924370,1779639033000,-150.0,0.00013879,2]
[422924365,1779639033000,-166.66,0.00013733,2]
[422924408,1779639037000,-4492.00027433,0.00014098,2]
[422924403,1779639037000,-762.15,0.00014097,2]
[422924405,1779639037000,-2000.0,0.00014097,2]
[422924406,1779639037000,-2500.0,0.00014097,2]
[422924404,1779639037000,-13850.79015881,0.00014097,2]
[422924407,1779639037000,-5615.6757713,0.00014097,2]
[422924410,1779639037000,-150.0,0.00014139,2]
[422924409,1779639037000,-3677.14543972,0.00014098,2]
[422924414,1779639037000,-1114.12132551,0.00014193,2]
[422924411,1779639037000,-166.66,0.00014159,2]
[422924413,1779639037000,-1114.12132551,0.00014193,2]
[422924412,1779639037000,-1114.12132551,0.00014193,2]
[422924423,1779639037000,-1114.12132551,0.00014193,2]
[422924419,1779639037000,-1114.12132551,0.00014193,2]
[422924422,1779639037000,-1114.12132551,0.00014193,2]
[422924421,1779639037000,-1114.12132551,0.00014193,2]
[422924418,1779639037000,-1114.12132551,0.00014193,2]
[422924415,1779639037000,-1114.12132551,0.00014193,2]
[422924416,1779639037000,-1114.12132551,0.00014193,2]
[422924417,1779639037000,-1114.12132551,0.00014193,2]
[422924420,1779639037000,-1114.12132551,0.00014193,2]
[422924444,1779639038000,-1114.12132551,0.00014193,2]
[422924440,1779639038000,-1114.12132551,0.00014193,2]
[422924443,1779639038000,-1114.12132551,0.00014193,2]
[422924445,1779639038000,-1114.12132551,0.00014193,2]
[422924446,1779639038000,-1114.12132551,0.00014193,2]
[422924448,1779639038000,-1114.12132551,0.00014193,2]
[422924458,1779639038000,-1114.12132551,0.00014193,2]
[422924450,1779639038000,-1114.12132551,0.00014193,2]
[422924452,1779639038000,-1114.12132551,0.00014193,2]
[422924456,1779639038000,-1114.12132551,0.00014193,2]
[422924442,1779639038000,-1114.12132551,0.00014193,2]
[422924461,1779639038000,-1114.12132551,0.00014193,2]
[422924463,1779639038000,-1114.12132551,0.00014193,2]
[422924447,1779639038000,-1114.12132551,0.00014193,2]
[422924439,1779639038000,-1114.12132551,0.00014193,2]
[422924434,1779639038000,-1114.12132551,0.00014193,2]
[422924438,1779639038000,-1114.12132551,0.00014193,2]
[422924473,1779639038000,-2107.31,0.00014196,2]
[422924425,1779639038000,-1114.12132551,0.00014193,2]
[422924426,1779639038000,-1114.12132551,0.00014193,2]
[422924424,1779639038000,-1114.12132551,0.00014193,2]
[422924428,1779639038000,-1114.12132551,0.00014193,2]
[422924427,1779639038000,-1114.12132551,0.00014193,2]
[422924441,1779639038000,-1114.12132551,0.00014193,2]
[422924429,1779639038000,-1114.12132551,0.00014193,2]
[422924433,1779639038000,-1114.12132551,0.00014193,2]
[422924430,1779639038000,-1114.12132551,0.00014193,2]
[422924431,1779639038000,-1114.12132551,0.00014193,2]
[422924437,1779639038000,-1114.12132551,0.00014193,2]
[422924436,1779639038000,-1114.12132551,0.00014193,2]
[422924435,1779639038000,-1114.12132551,0.00014193,2]
[422924432,1779639038000,-1114.12132551,0.00014193,2]
[422924469,1779639038000,-500.0,0.00014196,2]
[422924454,1779639038000,-1114.12132551,0.00014193,2]
[422924467,1779639038000,-1114.12132551,0.00014193,2]
[422924509,1779639038000,-2107.31,0.00014197,2]
[422924511,1779639038000,-500.0,0.00014197,2]
[422924513,1779639038000,-500.0,0.00014197,2]
[422924525,1779639038000,-1021.88178341,0.00014198,2]
[422924526,1779639038000,-644.86687067,0.00014198,2]
[422924516,1779639038000,-500.0,0.00014197,2]
[422924506,1779639038000,-2107.31,0.00014197,2]
[422924520,1779639038000,-437693.34798821,0.00014198,2]
[422924524,1779639038000,-999.8506,0.00014198,2]
[422924527,1779639038000,-162030.73484755,0.00014198,2]
[422924529,1779639038000,-63.34079404,0.00014198,2]
[422924532,1779639038000,-1738.835448,0.00014198,2]
[422924530,1779639038000,-437.05694,0.00014198,2]
[422924465,1779639038000,-1114.12132551,0.00014193,2]
[422924518,1779639038000,-5615.6757713,0.00014198,2]
[422924504,1779639038000,-2107.31,0.00014197,2]
[422924522,1779639038000,-2670.10974202,0.00014198,2]
[422924494,1779639038000,-500.0,0.00014197,2]
[422924476,1779639038000,-500.0,0.00014196,2]
[422924496,1779639038000,-500.0,0.00014197,2]
[422924471,1779639038000,-500.0,0.00014196,2]
[422924480,1779639038000,-246.46057279,0.00014197,2]
[422924531,1779639038000,-1208.05176702,0.00014198,2]
[422924486,1779639038000,-500.0,0.00014197,2]
[422924482,1779639038000,-303.77026514,0.00014197,2]
[422924478,1779639038000,-320.56,0.00014196,2]
[422924484,1779639038000,-500.0,0.00014197,2]
[422924488,1779639038000,-414.21819325,0.00014197,2]
[422924498,1779639038000,-500.0,0.00014197,2]
[422924490,1779639038000,-500.0,0.00014197,2]
[422924500,1779639038000,-500.0,0.00014197,2]
[422924502,1779639038000,-307.08,0.00014197,2]
[422924492,1779639038000,-609.40315001,0.00014197,2]
[422924551,1779639040000,-500.0,0.00014297,2]
[422924557,1779639040000,-151.0,0.00014298,2]
[422924555,1779639040000,-500.0,0.00014297,2]
[422924556,1779639040000,-327.82691244,0.00014298,2]
[422924554,1779639040000,-500.0,0.00014297,2]
[422924553,1779639040000,-2107.31,0.00014297,2]
[422924550,1779639040000,-500.0,0.00014297,2]
[422924558,1779639040000,-205.46020334,0.00014298,2]
[422924552,1779639040000,-2107.31,0.00014297,2]
[422924543,1779639040000,-1120.79851046,0.00014201,2]
[422924547,1779639040000,-218.91,0.00014283,2]
[422924545,1779639040000,-211.314523,0.00014214,2]
[422924546,1779639040000,-150.0,0.0001427,2]
[422924544,1779639040000,-150.0,0.00014204,2]
[422924542,1779639040000,-183788.07004611,0.00014198,2]
[422924540,1779639040000,-1671.60752331,0.00014198,2]
[422924541,1779639040000,-333.26194966,0.00014198,2]
[422924559,1779639040000,-368.182213,0.00014298,2]
[422924549,1779639040000,-300.0,0.00014297,2]
[422924561,1779639040000,-156.624335,0.00014298,2]
[422924548,1779639040000,-151.0,0.00014295,2]
[422924567,1779639040000,-277.073585,0.00014298,2]
[422924563,1779639040000,-368.182213,0.00014298,2]
[422924581,1779639040000,-500.0,0.00014398,2]
[422924579,1779639040000,-500.0,0.00014398,2]
[422924580,1779639040000,-500.0,0.00014398,2]
[422924578,1779639040000,-500.0,0.00014398,2]
[422924573,1779639040000,-178.918746,0.0001434,2]
[422924575,1779639040000,-167.23,0.00014384,2]
[422924576,1779639040000,-151.0,0.00014395,2]
[422924574,1779639040000,-195.84355,0.0001434,2]
[422924577,1779639040000,-500.0,0.00014398,2]
[422924570,1779639040000,-127.19624858,0.00014327,2]
[422924568,1779639040000,-5615.6757713,0.00014298,2]
[422924571,1779639040000,-63.90566745,0.00014327,2]
[422924569,1779639040000,-500.0,0.00014301,2]
[422924566,1779639040000,-277.073585,0.00014298,2]
[422924565,1779639040000,-277.073585,0.00014298,2]
[422924564,1779639040000,-277.073585,0.00014298,2]
[422924560,1779639040000,-368.182213,0.00014298,2]
[422924572,1779639040000,-150.0,0.00014335,2]
[422924562,1779639040000,-368.182213,0.00014298,2]
[422924623,1779639041000,-500.0,0.00014496,2]
[422924624,1779639041000,-424.27,0.00014497,2]
[422924620,1779639041000,-1218.64,0.00014466,2]
[422924621,1779639041000,-500.0,0.00014496,2]
[422924619,1779639041000,-150.0,0.00014465,2]
[422924614,1779639041000,-521.91294576,0.00014398,2]
[422924616,1779639041000,-150.0,0.000144,2]
[422924617,1779639041000,-3677.1454397,0.00014411,2]
[422924613,1779639041000,-500.0,0.00014398,2]
[422924615,1779639041000,-5615.6757713,0.00014398,2]
[422924622,1779639041000,-2107.31,0.00014496,2]
[422924618,1779639041000,-431.03189952,0.00014461,2]
[422924627,1779639041000,-5615.6757713,0.00014499,2]
[422924636,1779639041000,-9999.99,0.00014504,2]
[422924626,1779639041000,-8920.44724002,0.00014497,2]
[422924629,1779639041000,-1488.85,0.00014504,2]
[422924628,1779639041000,-499.99,0.00014504,2]
[422924631,1779639041000,-1579.64,0.00014504,2]
[422924630,1779639041000,-299.99,0.00014504,2]
[422924633,1779639041000,-67223.33,0.00014504,2]
[422924632,1779639041000,-4999.99,0.00014504,2]
[422924634,1779639041000,-1024.22,0.00014504,2]
[422924612,1779639041000,-500.0,0.00014398,2]
[422924637,1779639041000,-12339.29,0.00014504,2]
[422924638,1779639041000,-1333.97,0.00014504,2]
[422924635,1779639041000,-150.99,0.00014504,2]
[422924640,1779639041000,-208.8304494,0.00014515,2]
[422924625,1779639041000,-207.09275998,0.00014497,2]
[422924609,1779639041000,-500.0,0.00014398,2]
[422924598,1779639041000,-500.0,0.00014398,2]
[422924610,1779639041000,-500.0,0.00014398,2]
[422924639,1779639041000,-6319.78,0.00014504,2]
[422924583,1779639041000,-500.0,0.00014398,2]
[422924582,1779639041000,-395.3998277,0.00014398,2]
[422924584,1779639041000,-500.0,0.00014398,2]
[422924586,1779639041000,-508.40286137,0.00014398,2]
[422924585,1779639041000,-500.0,0.00014398,2]
[422924589,1779639041000,-469.30741198,0.00014398,2]
[422924587,1779639041000,-534.35,0.00014398,2]
[422924588,1779639041000,-65.04258802,0.00014398,2]
[422924590,1779639041000,-534.35,0.00014398,2]
[422924591,1779639041000,-534.35,0.00014398,2]
[422924593,1779639041000,-534.35,0.00014398,2]
[422924592,1779639041000,-534.35,0.00014398,2]
[422924594,1779639041000,-500.0,0.00014398,2]
[422924596,1779639041000,-500.0,0.00014398,2]
[422924595,1779639041000,-500.0,0.00014398,2]
[422924597,1779639041000,-500.0,0.00014398,2]
[422924601,1779639041000,-624.35,0.00014398,2]
[422924599,1779639041000,-500.0,0.00014398,2]
[422924600,1779639041000,-624.35,0.00014398,2]
[422924602,1779639041000,-624.35,0.00014398,2]
[422924604,1779639041000,-624.35,0.00014398,2]
[422924603,1779639041000,-624.35,0.00014398,2]
[422924605,1779639041000,-624.35,0.00014398,2]
[422924606,1779639041000,-500.0,0.00014398,2]
[422924608,1779639041000,-500.0,0.00014398,2]
[422924611,1779639041000,-500.0,0.00014398,2]
[422924607,1779639041000,-501.54002188,0.00014398,2]
[422924641,1779639041000,-160.0,0.00014515,2]
[422924658,1779639041000,-624.35,0.00014598,2]
[422924644,1779639041000,-150.0,0.00014595,2]
[422924676,1779639041000,-5615.6757713,0.00014699,2]
[422924678,1779639041000,-3677.1454397,0.00014724,2]
[422924677,1779639041000,-671.87,0.000147,2]
[422924679,1779639041000,-150.0,0.00014726,2]
[422924680,1779639041000,-150.0,0.00014791,2]
[422924682,1779639041000,-151.0,0.00014811,2]
[422924681,1779639041000,-5615.6757713,0.000148,2]
[422924683,1779639041000,-151.0,0.00014811,2]
[422924684,1779639041000,-151.0,0.00014811,2]
[422924685,1779639041000,-191.10191603,0.00014824,2]
[422924686,1779639041000,-433.0,0.00014824,2]
[422924688,1779639041000,-158.07,0.00014875,2]
[422924687,1779639041000,-150.0,0.00014856,2]
[422924691,1779639041000,-176.16409662,0.000149,2]
[422924690,1779639041000,-176.16409663,0.000149,2]
[422924692,1779639041000,-176.16409662,0.000149,2]
[422924693,1779639041000,-6309.47482822,0.000149,2]
[422924695,1779639041000,-5615.6757713,0.000149,2]
[422924697,1779639041000,-159.06154663,0.000149,2]
[422924701,1779639041000,-150.0,0.00014986,2]
[422924699,1779639041000,-150.0,0.00014926,2]
[422924694,1779639041000,-585.17028536,0.000149,2]
[422924698,1779639041000,-150.0,0.00014921,2]
[422924696,1779639041000,-749.3224245,0.000149,2]
[422924700,1779639041000,-190.82542213,0.00014926,2]
[422924702,1779639041000,-150.0,0.00014986,2]
[422924642,1779639041000,-150.0,0.0001453,2]
[422924675,1779639041000,-290.62487641,0.00014699,2]
[422924673,1779639041000,-1000.0,0.00014699,2]
[422924689,1779639041000,-10000.0,0.000149,2]
[422924674,1779639041000,-1037.34605797,0.00014699,2]
[422924670,1779639041000,-151.0,0.00014633,2]
[422924649,1779639041000,-534.35,0.00014598,2]
[422924648,1779639041000,-534.35,0.00014598,2]
[422924643,1779639041000,-166.66,0.00014584,2]
[422924647,1779639041000,-151.0,0.00014596,2]
[422924645,1779639041000,-151.0,0.00014596,2]
[422924650,1779639041000,-534.35,0.00014598,2]
[422924646,1779639041000,-151.0,0.00014596,2]
[422924652,1779639041000,-500.0,0.00014598,2]
[422924655,1779639041000,-624.35,0.00014598,2]
[422924653,1779639041000,-500.0,0.00014598,2]
[422924654,1779639041000,-623.43019064,0.00014598,2]
[422924656,1779639041000,-624.35,0.00014598,2]
[422924662,1779639041000,-368.182213,0.00014632,2]
[422924651,1779639041000,-534.35,0.00014598,2]
[422924663,1779639041000,-368.182213,0.00014632,2]
[422924672,1779639041000,-151.0,0.00014699,2]
[422924669,1779639041000,-277.073585,0.00014632,2]
[422924671,1779639041000,-150.0,0.00014661,2]
[422924665,1779639041000,-277.073585,0.00014632,2]
[422924666,1779639041000,-277.073585,0.00014632,2]
[422924668,1779639041000,-277.073585,0.00014632,2]
[422924660,1779639041000,-191.10191603,0.00014625,2]
[422924661,1779639041000,-368.182213,0.00014632,2]
[422924659,1779639041000,-5615.6757713,0.00014599,2]
[422924703,1779639041000,-8633.0,0.00014986,2]
[422924657,1779639041000,-624.35,0.00014598,2]
[422924664,1779639041000,-368.182213,0.00014632,2]
[422924724,1779639042000,-624.35,0.00014999,2]
[422924720,1779639042000,-534.35,0.00014999,2]
[422924725,1779639042000,-624.35,0.00014999,2]
[422924723,1779639042000,-624.35,0.00014999,2]
[422924721,1779639042000,-624.35,0.00014999,2]
[422924726,1779639042000,-624.35,0.00014999,2]
[422924730,1779639042000,-624.35,0.00014999,2]
[422924729,1779639042000,-624.35,0.00014999,2]
[422924728,1779639042000,-624.35,0.00014999,2]
[422924731,1779639042000,-624.35,0.00014999,2]
[422924732,1779639042000,-624.35,0.00014999,2]
[422924737,1779639042000,-500.0,0.00014999,2]
[422924733,1779639042000,-624.47820693,0.00014999,2]
[422924727,1779639042000,-624.35,0.00014999,2]
[422924719,1779639042000,-534.35,0.00014999,2]
[422924708,1779639042000,-534.35,0.00014999,2]
[422924715,1779639042000,-534.35,0.00014999,2]
[422924717,1779639042000,-534.35,0.00014999,2]
[422924716,1779639042000,-534.35,0.00014999,2]
[422924714,1779639042000,-534.35,0.00014999,2]
[422924710,1779639042000,-534.35,0.00014999,2]
[422924711,1779639042000,-534.35,0.00014999,2]
[422924713,1779639042000,-534.35,0.00014999,2]
[422924706,1779639042000,-534.35,0.00014998,2]
[422924707,1779639042000,-624.35,0.00014998,2]
[422924709,1779639042000,-534.35,0.00014999,2]
[422924712,1779639042000,-534.35,0.00014999,2]
[422924705,1779639042000,-151.0,0.00014997,2]
[422924704,1779639042000,-431.03189952,0.0001499,2]
[422924735,1779639042000,-500.0,0.00014999,2]
[422924722,1779639042000,-624.35,0.00014999,2]
[422924734,1779639042000,-500.0,0.00014999,2]
[422924718,1779639042000,-534.35,0.00014999,2]
[422924738,1779639042000,-500.0,0.00014999,2]
[422924778,1779639042000,-788.94478911,0.00015,2]
[422924774,1779639042000,-300.0,0.00014999,2]
[422924775,1779639042000,-249914.75089884,0.00015,2]
[422924773,1779639042000,-300.0,0.00014999,2]
[422924776,1779639042000,-264263.60614446,0.00015,2]
[422924777,1779639042000,-265.96,0.00015,2]
[422924772,1779639042000,-300.0,0.00014999,2]
[422924771,1779639042000,-300.0,0.00014999,2]
[422924768,1779639042000,-2107.43801849,0.00014999,2]
[422924769,1779639042000,-500.0,0.00014999,2]
[422924770,1779639042000,-284.01300624,0.00014999,2]
[422924762,1779639042000,-2107.31,0.00014999,2]
[422924757,1779639042000,-2107.31,0.00014999,2]
[422924767,1779639042000,-2107.31,0.00014999,2]
[422924766,1779639042000,-2107.31,0.00014999,2]
[422924736,1779639042000,-500.0,0.00014999,2]
[422924760,1779639042000,-2107.31,0.00014999,2]
[422924753,1779639042000,-2107.31,0.00014999,2]
[422924755,1779639042000,-2107.31,0.00014999,2]
[422924764,1779639042000,-2107.31,0.00014999,2]
[422924751,1779639042000,-2107.31,0.00014999,2]
[422924749,1779639042000,-2107.31,0.00014999,2]
[422924747,1779639042000,-2107.31,0.00014999,2]
[422924746,1779639042000,-2107.31,0.00014999,2]
[422924744,1779639042000,-2107.31,0.00014999,2]
[422924745,1779639042000,-2107.31,0.00014999,2]
[422924743,1779639042000,-2107.31,0.00014999,2]
[422924742,1779639042000,-162.56498333,0.00014999,2]
[422924741,1779639042000,-500.0,0.00014999,2]
[422924739,1779639042000,-500.0,0.00014999,2]
[422924740,1779639042000,-500.0,0.00014999,2]
[422924761,1779639042000,-2107.31,0.00014999,2]
[422924803,1779639043000,-471.87138071,0.00015,2]
[422924802,1779639043000,-163.91345622,0.00014999,2]
[422924817,1779639045000,-438111.15319922,0.00014999,2]
[422924818,1779639045000,-4126.81551852,0.00014999,2]
[422924816,1779639045000,-10719.31037878,0.00014999,2]
[422924815,1779639045000,-7298.52730078,0.00014999,2]
[422924814,1779639045000,-13956.24469646,0.00014999,2]
[422924819,1779639046000,-10946.92787539,0.00014999,2]
[422924820,1779639046000,-51013.39185545,0.00014999,2]
[422924826,1779639141000,449.7132,8.623e-05,2]
[422924829,1779639178000,2000.0,0.00014087,2]
[422924830,1779639237000,50.2868,0.00013995,2]
[422924836,1779639600000,164.83,6.758e-05,2]
[422924837,1779639798000,157.15698929,0.00028082,120]
[422924840,1779639957000,1191.79617657,0.00025641,120]
[422924839,1779639957000,1191.79617657,0.00025572,120]
[422924841,1779639958000,1191.79617657,0.0002571,120]
[422924845,1779640140000,1000.0,0.00028081,120]
[422924855,1779640231000,-300.0,0.00010699,2]
[422924857,1779640231000,-11968.26987354,0.000107,2]
[422924854,1779640231000,-1200.0,0.00010698,2]
[422924850,1779640231000,-164.83,0.00010137,2]
[422924852,1779640231000,-620.7237865,0.0001069,2]
[422924851,1779640231000,-187.0,0.00010604,2]
[422924853,1779640231000,-347.0,0.00010698,2]
[422924856,1779640231000,-300.0,0.00010699,2]
[422924875,1779640232000,-7898.18364622,0.00012087,2]
[422924858,1779640232000,-18854.43386015,0.000107,2]
[422924859,1779640232000,-5191.54365359,0.000107,2]
[422924860,1779640232000,-789.06326573,0.000107,2]
[422924862,1779640232000,-2124.78198528,0.000107,2]
[422924861,1779640232000,-6727.8399879,0.000107,2]
[422924864,1779640232000,-150.0,0.0001115,2]
[422924866,1779640232000,-500.0,0.00011151,2]
[422924883,1779640232000,-139.51753916,0.00012198,2]
[422924881,1779640232000,-865.41852196,0.00012087,2]
[422924873,1779640232000,-2379.93431454,0.00012087,2]
[422924868,1779640232000,-1051.0,0.00011768,2]
[422924877,1779640232000,-3575.68783182,0.00012087,2]
[422924870,1779640232000,-3939.84568546,0.00012087,2]
[422924912,1779640237000,-423.23335216,0.00012311,2]
[422924910,1779640237000,-115.48246084,0.00012198,2]
[422924937,1779640238000,-150.0,0.00013814,2]
[422924952,1779640238000,-150.0,0.00013903,2]
[422924935,1779640238000,-67223.33,0.00013699,2]
[422924941,1779640238000,-500.0,0.00013903,2]
[422924938,1779640238000,-500.0,0.00013903,2]
[422924942,1779640238000,-500.0,0.00013903,2]
[422924939,1779640238000,-500.0,0.00013903,2]
[422924940,1779640238000,-268.4459,0.00013903,2]
[422924949,1779640238000,-150.0,0.00013903,2]
[422924959,1779640238000,-250.0,0.00013903,2]
[422924948,1779640238000,-500.0,0.00013903,2]
[422924960,1779640238000,-150.0,0.00013903,2]
[422924954,1779640238000,-200.0,0.00013903,2]
[422924957,1779640238000,-150.0,0.00013903,2]
[422924944,1779640238000,-500.0,0.00013903,2]
[422924958,1779640238000,-150.0,0.00013903,2]
[422924950,1779640238000,-436.17191867,0.00013903,2]
[422924953,1779640238000,-150.0,0.00013903,2]
[422924951,1779640238000,-150.0,0.00013903,2]
[422924956,1779640238000,-150.0,0.00013903,2]
[422924961,1779640238000,-150.0,0.00013903,2]
[422924963,1779640238000,-150.0,0.00013903,2]
[422924962,1779640238000,-150.0,0.00013903,2]
[422924965,1779640238000,-250.0,0.00014,2]
[422924955,1779640238000,-150.0,0.00013903,2]
[422924945,1779640238000,-500.0,0.00013903,2]
[422924936,1779640238000,-1024.22,0.00013699,2]
[422924947,1779640238000,-350.0,0.00013903,2]
[422924966,1779640238000,-150.0,0.00014023,2]
[422924913,1779640238000,-2674.6178411,0.00012311,2]
[422924914,1779640238000,-12790.89645291,0.00012311,2]
[422924917,1779640238000,-11956.0,0.00012612,2]
[422924915,1779640238000,-1131.19,0.00012522,2]
[422924916,1779640238000,-4683.72,0.00012538,2]
[422924920,1779640238000,-198.0,0.00012713,2]
[422924921,1779640238000,-500.0,0.00012822,2]
[422924919,1779640238000,-997.9,0.00012693,2]
[422924918,1779640238000,-3359.0,0.00012637,2]
[422924922,1779640238000,-685.0,0.00012952,2]
[422924943,1779640238000,-500.0,0.00013903,2]
[422924923,1779640238000,-2773.0,0.00012953,2]
[422924931,1779640238000,-150.0,0.00013602,2]
[422924934,1779640238000,-1488.85,0.00013699,2]
[422924925,1779640238000,-165.7,0.00013037,2]
[422924933,1779640238000,-198.98506562,0.0001365,2]
[422924926,1779640238000,-268.13,0.00013213,2]
[422924930,1779640238000,-164.83,0.00013516,2]
[422924929,1779640238000,-150.0,0.00013389,2]
[422924928,1779640238000,-150.0,0.00013389,2]
[422924932,1779640238000,-166.66,0.00013637,2]
[422924927,1779640238000,-433.0,0.00013346,2]
[422924946,1779640238000,-500.0,0.00013903,2]
[422924924,1779640238000,-158.08,0.00013012,2]
[422924964,1779640238000,-195.76096857,0.00013903,2]
[422924984,1779640238000,-500.0,0.00014023,2]
[422924969,1779640238000,-500.0,0.00014023,2]
[422925010,1779640238000,-150.0,0.00014177,2]
[422925006,1779640238000,-192.20233017,0.00014177,2]
[422925011,1779640238000,-500.0,0.00014177,2]
[422925009,1779640238000,-500.0,0.00014177,2]
[422925014,1779640238000,-297.8008769,0.00014177,2]
[422925012,1779640238000,-150.0,0.00014177,2]
[422925020,1779640238000,-3611.6809,0.00014404,2]
[422925019,1779640238000,-150.0,0.00014239,2]
[422925018,1779640238000,-166.66,0.000142,2]
[422925017,1779640238000,-500.28174121,0.00014196,2]
[422925021,1779640238000,-1825.0764,0.00014404,2]
[422925008,1779640238000,-150.0,0.00014177,2]
[422925022,1779640238000,-2500.0,0.00014404,2]